[Event "43rd Guernsey Festival 2017"]
[Site "Vale"]
[Date "2017.10.18"]
[Round "4"]
[White "De Kruif, Kees"]
[Black "Bowmer, Kevin"]
[Result "0-1"]
[ECO "A10"]
[WhiteElo "1993"]
[BlackElo "2041"]
[Annotator "NA RC"]
[PlyCount "80"]
[EventDate "2017.??.??"]
[EventType "swiss"]
[EventCountry "GCI"]
[SourceTitle "playchess.com"]
[Source "ChessBase"]
[SourceQuality "1"]
[TimeControl "40/6000+30:2400+30"]

{[%evp 8,80,12,7,-16,-20,19,-12,-5,0,17,0,-5,-8,-8,-20,-9,-13,-40,-52,-14,-25,-17,-41,-18,-8,62,43,43,52,61,40,65,61,59,9,32,-9,-2,0,0,-4,0,0,50,0,0,-8,8,0,37,-145,-157,-149,-143,-165,-149,-303,-328,-377,-308,-747,-735,-727,-886,-1162,-1280,-1691,-2279,-5029,-6299,-29991,-29992,-29993,-29992]} 1. c4 g6 2. g3 {[%emt 0:01:03]} Bg7 {[%emt 0:00:44]} 3. Bg2 {[%emt 0:00:09]} c5 {[%emt 0:00:25]} 4. d3 {[%emt 0:01:08]} Nc6 {[%emt 0:00:38]} 5. e4 {[%emt 0:00:41]} d6 {[%emt 0:00:39]} 6. Ne2 {[%emt 0:00:56]} Nf6 {[%emt 0:00:19]} 7. O-O {[%emt 0:00:36]} O-O {[%emt 0:00:22]} 8. Nbc3 {[%emt 0:00:34]} a6 {[%emt 0:01:09]} 9. f4 {[%emt 0:03:55]} Rb8 {[%emt 0:01:48]} 10. a4 {[%emt 0:00:23]} Bd7 {[%emt 0:01:55]} 11. h3 {[%emt 0:07:14]} Ne8 {[%emt 0:01:39]} 12. f5 {[%emt 0:00:56] LiveBook: 3 Games A36: Symmetrical English vs ...g6: 4 Bg2 Bg7} (12. Be3 Nd4 13. Rb1 b5 14. axb5 axb5 15. cxb5 Bxb5 16. g4 Nc7 17. Ng3 e6 18. f5 Qh4 19. Bf2 Qg5 20. h4 Qd8 {1-0 (41) Kramnik,V (2791)-Radjabov,T (2744) Moscow 2010}) 12... Nc7 {[%emt 0:03:12]} 13. Rb1 {[%emt 0:13:33]} b5 {[%emt 0:11:24]} 14. Bg5 {[%emt 0:05:24]} h6 {[%emt 0:12:04]} 15. Bd2 $146 {[%emt 0:02:14]} ({Predecessor:} 15. Be3 bxc4 16. dxc4 Ne5 17. b3 Kh7 18. Qd2 Qc8 19. Nf4 g5 {1-0 (33) Spencer,C (1855)-Somerfield,A (1825) Telford 2004}) 15... bxa4 {[%emt 0:16:16]} 16. Nxa4 {[%emt 0:00:48]} Nd4 {[%emt 0:02:47]} (16... e6 $11) 17. Nxd4 {[%emt 0:02:03]} Bxd4+ {[%emt 0:03:16]} 18. Kh2 {[%emt 0:00:15]} Kh7 {[%emt 0:02:48]} 19. Nc3 {[%emt 0:04:41]} e6 {[%emt 0:05:26]} 20. fxg6+ {[%emt 0:10:53]} fxg6 {[%emt 0:00:13]} 21. Qc2 {[%emt 0:03:09]} (21. Ne2 $14) 21... Qe7 {[%emt 0:01:52]} 22. Rf3 {[%emt 0:01:31]} (22. Rxf8 $14 Qxf8 23. Ne2) 22... Rxf3 {[%emt 0:00:54]} 23. Bxf3 {[%emt 0:00:06]} Rf8 {[%emt 0:00:49]} 24. Rf1 {[%emt 0:00:18]} Be5 {[%emt 0:01:25]} 25. Ne2 {[%emt 0:03:52]} Qg7 {[%emt 0:01:10]} 26. Bc3 {[%emt 0:01:06]} ({White should play} 26. b4 $14) 26... h5 {[%emt 0:00:41]} 27. Kg2 {[%emt 0:03:25]} Rb8 {[%emt 0:01:54]} 28. Rf2 {[%emt 0:02:10]} a5 {[%emt 0:00:51]} 29. d4 $2 {[%emt 0:02:52]} (29. Bxe5 $14 Qxe5 30. Qc3) 29... cxd4 {[%emt 0:01:46]} 30. Bxa5 {[%emt 0:00:17] [#]} Na6 $1 {[%emt 0:00:26]} 31. Qd2 {[%emt 0:04:14] [#]} d3 $1 {[%emt 0:03:42]} 32. Qxd3 {[%emt 0:05:41]} (32. Nf4 $17 {was necessary.} Rxb2 33. Qxd3 $17) 32... Nc5 {[%emt 0:01:10]} 33. Qd1 {[%emt 0:02:33]} Rxb2 {[%emt 0:01:48]} 34. Bc7 $2 {[%emt 0:09:19]} (34. Nc1 Ba4 35. Qe1) 34... Ba4 {[%emt 0:00:58]} 35. Qf1 {[%emt 0:00:59]} Nd3 {[%emt 0:01:45]} 36. Bxd6 {[%emt 0:02:24]} Bxd6 {[%emt 0:01:48]} 37. Qa1 {[%emt 0:02:48]} Nxf2 {[%emt 0:02:47]} 38. Qxa4 {[%emt 0:00:08]} Nd3 {[%emt 0:00:39]} 39. Qc6 {[%emt 0:00:33]} Qe5 {[%emt 0:04:50]} 40. Qb7+ {[%emt 0:00:07]} Kh6 {[%emt 0:40:08]} 0-1

[Event "43rd Guernsey Festival 2017"]
[Site "Vale"]
[Date "2017.10.18"]
[Round "4"]
[White "Hoogakker, Peter"]
[Black "Finch, Russell"]
[Result "1/2-1/2"]
[ECO "B50"]
[WhiteElo "1769"]
[BlackElo "1689"]
[Annotator "NA RC"]
[PlyCount "49"]
[EventDate "2017.??.??"]
[EventType "swiss"]
[EventCountry "GCI"]
[SourceTitle "playchess.com"]
[Source "ChessBase"]
[SourceQuality "1"]
[TimeControl "40/6000+30:2400+30"]

1. e4 {[%emt 0:00:00]} c5 {[%emt 0:00:13]} 2. Nf3 {[%emt 0:00:00]} d6 {[%emt 0:00:10]} 3. c3 {[%emt 0:00:00]} Nf6 {[%emt 0:00:08]} 4. Be2 {[%emt 0:00:07]} Nc6 {[%emt 0:00:39]} 5. d4 {[%emt 0:00:14]} g6 {[%emt 0:02:18]} 6. Nbd2 {[%emt 0:06:05]} Bg7 {[%emt 0:00:31]} 7. O-O {[%emt 0:00:39]} O-O {[%emt 0:01:25]} 8. Re1 {[%emt 0:03:34]} Qc7 {[%emt 0:04:31]} 9. a3 {[%emt 0:05:31]} b6 {[%emt 0:03:35]} 10. Bc4 {[%emt 0:04:41]} Bb7 {[%emt 0:04:30]} 11. d5 {[%emt 0:05:53]} Nb8 {[%emt 0:04:29]} 12. Nf1 {[%emt 0:05:01]} Nbd7 {[%emt 0:04:10]} 13. Ng3 {[%emt 0:01:15]} Ne5 {[%emt 0:06:50]} 14. Nxe5 {[%emt 0:01:59]} dxe5 {[%emt 0:00:10]} 15. Be3 {[%emt 0:08:01]} Rfd8 {[%emt 0:03:29]} 16. Qc1 {[%emt 0:07:40]} Ne8 {[%emt 0:08:05]} 17. f4 {[%emt 0:06:22]} exf4 {[%emt 0:03:43]} 18. Bxf4 {[%emt 0:00:13]} Be5 {[%emt 0:00:23]} 19. Bxe5 {[%emt 0:00:27]} Qxe5 {[%emt 0:00:07]} 20. Bd3 {[%emt 0:03:50]} Nf6 {[%emt 0:08:19]} 21. c4 {[%emt 0:04:43]} Ng4 {[%emt 0:04:08]} 22. Qc3 {[%emt 0:06:24]} Qxc3 {[%emt 0:08:17]} 23. bxc3 {[%emt 0:00:10]} Ne5 {[%emt 0:00:41]} 24. Rad1 {[%emt 0:02:42]} Ba6 {[%emt 0:01:49]} 25. Nf1 {[%emt 0:08:27]} 1/2-1/2

[Event "43rd Guernsey Festival 2017"]
[Site "Vale"]
[Date "2017.10.18"]
[Round "4"]
[White "Glover, John"]
[Black "Colsen, Manuel"]
[Result "1/2-1/2"]
[ECO "A38"]
[WhiteElo "1765"]
[BlackElo "1665"]
[Annotator "NA RC"]
[PlyCount "102"]
[EventDate "2017.??.??"]
[EventType "swiss"]
[EventCountry "GCI"]
[SourceTitle "playchess.com"]
[Source "ChessBase"]
[SourceQuality "1"]
[TimeControl "40/6000+30:2400+30"]

1. Nf3 {[%emt 0:00:00]} Nf6 {[%emt 0:00:21]} 2. c4 {[%emt 0:00:02]} c5 {[%emt 0:00:17]} 3. g3 {[%emt 0:00:14]} g6 {[%emt 0:00:14]} 4. Bg2 {[%emt 0:00:13]} Bg7 {[%emt 0:00:17]} 5. Nc3 {[%emt 0:00:12]} Nc6 {[%emt 0:00:15]} 6. d4 {[%emt 0:00:14]} cxd4 {[%emt 0:02:40]} 7. Nxd4 {[%emt 0:00:10]} Nxd4 {[%emt 0:00:38]} 8. Qxd4 {[%emt 0:00:10]} O-O {[%emt 0:00:50]} 9. O-O {[%emt 0:00:11]} Nh5 {[%emt 0:10:28]} 10. Qd3 {[%emt 0:02:37]} d6 {[%emt 0:04:12]} 11. Be3 {[%emt 0:04:05]} Bf5 {[%emt 0:08:27]} 12. Qd2 {[%emt 0:01:33]} Qd7 {[%emt 0:07:53]} 13. Rfd1 {[%emt 0:01:32]} Nf6 {[%emt 0:07:59]} 14. Bh6 {[%emt 0:03:56]} Bh3 {[%emt 0:02:54]} 15. Bxg7 {[%emt 0:01:43]} Kxg7 {[%emt 0:00:18]} 16. Bh1 {[%emt 0:01:39]} h5 {[%emt 0:04:13]} 17. Rac1 {[%emt 0:02:27]} h4 {[%emt 0:06:03]} 18. Qd4 {[%emt 0:11:40]} hxg3 {[%emt 0:01:42]} 19. fxg3 {[%emt 0:00:41]} Qg4 {[%emt 0:18:27]} 20. Bf3 {[%emt 0:04:20]} Qg5 {[%emt 0:06:55]} 21. Ne4 {[%emt 0:02:08]} Qe5 {[%emt 0:02:42]} 22. Nxf6 {[%emt 0:02:56]} Qxf6 {[%emt 0:03:48]} 23. b3 {[%emt 0:00:47]} Qxd4+ {[%emt 0:07:32]} 24. Rxd4 {[%emt 0:00:14]} Rab8 {[%emt 0:01:15]} 25. e4 {[%emt 0:05:03]} f5 {[%emt 0:02:07]} 26. exf5 {[%emt 0:10:39]} Rxf5 {[%emt 0:01:06]} 27. Bg2 {[%emt 0:00:57]} Bxg2 {[%emt 0:00:28]} 28. Kxg2 {[%emt 0:00:04]} Rbf8 {[%emt 0:00:14]} 29. Rc2 {[%emt 0:02:00]} R8f6 {[%emt 0:05:42]} 30. Re2 {[%emt 0:01:19]} Kf7 {[%emt 0:00:58]} 31. Red2 {[%emt 0:02:30]} b6 {[%emt 0:00:16]} 32. b4 {[%emt 0:01:35]} Rf1 {[%emt 0:00:57]} 33. Rc2 {[%emt 0:06:51]} Rb1 {[%emt 0:01:44]} 34. c5 {[%emt 0:01:05]} bxc5 {[%emt 0:00:12]} 35. bxc5 {[%emt 0:00:15]} dxc5 {[%emt 0:00:21]} 36. Rd7 {[%emt 0:00:42]} a5 {[%emt 0:02:16]} 37. Ra7 {[%emt 0:00:17]} Rfb6 {[%emt 0:00:44]} 38. Rxa5 {[%emt 0:00:32]} R1b2 {[%emt 0:01:14]} 39. Raxc5 {[%emt 0:00:21]} R2b4 {[%emt 0:00:40]} 40. R5c3 {[%emt 0:02:32]} Ra4 {[%emt 0:40:37]} 41. a3 {[%emt 0:43:48]} Rb1 {[%emt 0:00:00]} 42. Rf2+ {[%emt 0:00:00]} Kg7 {[%emt 0:00:00]} 43. Re3 {[%emt 0:00:00]} e5 {[%emt 0:00:00]} 44. h4 e4 {[%emt 0:00:00]} 45. Kh3 {[%emt 0:00:00]} Ra1 {[%emt 0:00:00]} 46. Rfe2 {[%emt 0:00:00]} R1xa3 {[%emt 0:00:00]} 47. Rxa3 {[%emt 0:00:00]} Rxa3 {[%emt 0:00:00]} 48. Rxe4 Rf3 49. Kg4 {[%emt 0:00:00]} Rd3 {[%emt 0:00:00]} 50. Kf4 Kh6 {[%emt 0:00:00]} 51. g4 {[%emt 0:00:00]} Rh3 {[%emt 0:00:00]} 1/2-1/2

[Event "43rd Guernsey Festival 2017"]
[Site "Vale"]
[Date "2017.10.18"]
[Round "4"]
[White "Kirk, Matthew"]
[Black "O`connell, Denis"]
[Result "1/2-1/2"]
[ECO "D08"]
[WhiteElo "1721"]
[BlackElo "1722"]
[Annotator "NA RC"]
[PlyCount "122"]
[EventDate "2017.??.??"]
[EventType "swiss"]
[EventCountry "GCI"]
[SourceTitle "playchess.com"]
[Source "ChessBase"]
[SourceQuality "1"]
[TimeControl "40/6000+30:2400+30"]

1. d4 d5 2. c4 e5 3. dxe5 d4 4. Nf3 Nc6 5. a3 Nge7 6. e3 Bg4 7. Be2 dxe3 8. Bxe3 Qxd1+ 9. Bxd1 Bxf3 10. Bxf3 Nxe5 11. Be2 Nf5 12. Bf4 f6 13. Bxe5 fxe5 14. Nc3 Nd4 15. Bd1 O-O-O 16. O-O Kb8 17. Re1 Bd6 18. b4 c6 19. c5 Bc7 20. Ne4 h6 21. a4 Rhf8 22. Re3 Rf4 23. Rb1 Nf5 24. Re1 Nd4 25. b5 Ba5 26. g3 Bxe1 27. gxf4 exf4 28. bxc6 Nxc6 29. Nd6 b6 30. Bf3 Nd4 31. Be4 Ba5 32. Nc4 Kc7 33. Nxa5 bxa5 34. Rb7+ Kc8 35. Rxa7 Ne2+ 36. Kg2 Nc3 37. Bf5+ Kb8 38. Rxa5 Rd5 39. Bg4 g5 40. Bf3 Re5 41. Ra8+ Kc7 42. c6 Ne4 43. a5 Kxc6 44. a6 Kb6 45. Be2 Ra5 46. Re8 Nc5 47. Rh8 Nxa6 48. Bxa6 Kxa6 49. Rxh6+ Kb7 50. Rg6 Kc7 51. Kf3 Kd7 52. Kg4 Ra2 53. Rxg5 Rxf2 54. h4 Ke7 55. h5 Rg2+ 56. Kxf4 Rxg5 57. Kxg5 Kf7 58. Kh6 Kg8 59. Kg6 Kh8 60. h6 Kg8 61. h7+ Kh8 1/2-1/2

[Event "43rd Guernsey Festival 2017"]
[Site "Vale"]
[Date "2017.10.19"]
[Round "5"]
[White "Enkhtuul, Altan-Ulzii"]
[Black "Timmermans, Ivo"]
[Result "1-0"]
[ECO "A46"]
[WhiteElo "2327"]
[BlackElo "2126"]
[Annotator "ChessBase"]
[PlyCount "75"]
[EventDate "2017.??.??"]
[EventType "swiss"]
[EventCountry "GCI"]
[SourceTitle "playchess.com"]
[Source "ChessBase"]
[SourceQuality "1"]
[TimeControl "40/6000+30:2400+30"]

1. d4 {[%emt 0:01:23]} Nf6 {[%emt 0:00:19]} 2. Nf3 {[%emt 0:00:22]} d5 {[%emt 0:00:12]} 3. g3 {[%emt 0:00:19]} e6 {[%emt 0:00:18]} 4. Bg2 {[%emt 0:00:05]} Be7 {[%emt 0:00:14]} 5. O-O {[%emt 0:00:09]} O-O {[%emt 0:00:10]} 6. Nbd2 {[%emt 0:01:05]} c5 {[%emt 0:01:58]} 7. c4 {[%emt 0:00:13]} cxd4 {[%emt 0:01:50]} 8. Nxd4 {[%emt 0:01:41]} e5 {[%emt 0:01:46]} 9. N4f3 {[%emt 0:01:47]} Nc6 {[%emt 0:02:57]} 10. cxd5 {[%emt 0:02:51]} Nxd5 {[%emt 0:05:43]} 11. Nc4 {[%emt 0:00:50]} f6 {[%emt 0:06:58]} 12. Nfxe5 {[%emt 0:00:33]} Be6 {[%emt 0:01:10]} 13. Nxc6 {[%emt 0:02:32]} bxc6 {[%emt 0:00:09]} 14. Qa4 {[%emt 0:00:30]} Qc7 {[%emt 0:07:37]} 15. Na5 {[%emt 0:04:30]} Rac8 {[%emt 0:03:55]} 16. Bd2 {[%emt 0:04:03]} Rfd8 {[%emt 0:03:23]} 17. Rac1 {[%emt 0:05:56]} c5 {[%emt 0:03:29]} 18. Qc2 {[%emt 0:03:55]} Qe5 {[%emt 0:06:22]} 19. Nc4 {[%emt 0:04:26]} Qh5 {[%emt 0:00:59]} 20. Ba5 {[%emt 0:03:19]} Re8 {[%emt 0:03:04]} 21. a3 {[%emt 0:00:20]} Nc7 {[%emt 0:03:40]} 22. Bc6 {[%emt 0:05:49]} Bf5 {[%emt 0:03:24]} 23. Qb3 {[%emt 0:04:47]} Ne6 {[%emt 0:01:46]} 24. Bxe8 {[%emt 0:03:23]} Rxe8 {[%emt 0:00:39]} 25. Ne3 {[%emt 0:00:44]} Bh3 {[%emt 0:01:09]} 26. Rfe1 {[%emt 0:08:23]} Kh8 {[%emt 0:03:51]} 27. Qd5 {[%emt 0:03:57]} Ng5 {[%emt 0:00:26]} 28. f4 {[%emt 0:05:55]} Be6 {[%emt 0:00:58]} 29. Qc6 {[%emt 0:01:12]} Nh3+ {[%emt 0:03:37]} 30. Kg2 {[%emt 0:02:27]} Bf8 {[%emt 0:06:24]} 31. Qf3 {[%emt 0:05:45]} Qh6 {[%emt 0:01:15]} 32. b4 {[%emt 0:01:35]} Bd6 {[%emt 0:04:39]} 33. bxc5 {[%emt 0:04:06]} Bxf4 {[%emt 0:01:39]} 34. gxf4 {[%emt 0:02:19]} Nxf4+ {[%emt 0:00:26]} 35. Kh1 {[%emt 0:00:10]} g5 {[%emt 0:03:39]} 36. c6 {[%emt 0:01:52]} g4 {[%emt 0:01:29]} 37. Nxg4 Qg5 {[%emt 0:01:59]} 38. Nxf6 {[%emt 0:05:45]} 1-0

[Event "43rd Guernsey Festival 2017"]
[Site "Vale"]
[Date "2017.10.19"]
[Round "5"]
[White "Mack, Wolfgang"]
[Black "Whatley, Stephen A J"]
[Result "1/2-1/2"]
[ECO "A10"]
[WhiteElo "2149"]
[BlackElo "2159"]
[Annotator "ChessBase"]
[PlyCount "166"]
[EventDate "2017.??.??"]
[EventType "swiss"]
[EventCountry "GCI"]
[SourceTitle "playchess.com"]
[Source "ChessBase"]
[SourceQuality "1"]
[TimeControl "40/6000+30:2400+30"]

1. c4 {[%emt 0:00:00]} f5 {[%emt 0:06:26]} 2. Nc3 {[%emt 0:00:07]} Nf6 {[%emt 0:00:18]} 3. g3 {[%emt 0:00:45]} d6 {[%emt 0:00:19]} 4. Bg2 {[%emt 0:00:19]} g6 {[%emt 0:00:09]} 5. e4 {[%emt 0:00:55]} c6 {[%emt 0:05:21]} 6. h4 {[%emt 0:03:13]} Bg7 {[%emt 0:12:10]} 7. d3 {[%emt 0:05:20]} O-O {[%emt 0:06:24]} 8. Nh3 {[%emt 0:06:51]} e5 {[%emt 0:02:31]} 9. Bg5 {[%emt 0:01:37]} Na6 {[%emt 0:12:28]} 10. Qd2 {[%emt 0:18:15]} Nc5 {[%emt 0:01:44]} 11. O-O-O {[%emt 0:04:53]} fxe4 {[%emt 0:09:23]} 12. dxe4 {[%emt 0:16:17]} Be6 {[%emt 0:00:56]} 13. Qxd6 {[%emt 0:09:55]} Qxd6 {[%emt 0:11:38]} 14. Rxd6 {[%emt 0:00:13]} Bxc4 {[%emt 0:00:42]} 15. Rhd1 {[%emt 0:05:22]} Be6 {[%emt 0:08:12]} 16. Ng1 {[%emt 0:04:30]} Bc8 {[%emt 0:06:03]} 17. Be3 {[%emt 0:13:52]} Ncd7 {[%emt 0:04:46]} 18. Bh3 {[%emt 0:00:19]} Nb6 {[%emt 0:00:39]} 19. b3 {[%emt 0:02:15]} Bxh3 {[%emt 0:02:44]} 20. Nxh3 {[%emt 0:00:08]} Ng4 {[%emt 0:06:47]} 21. Bc5 {[%emt 0:00:48]} Bh6+ {[%emt 0:02:12]} 22. Kb2 {[%emt 0:00:55]} Rf7 {[%emt 0:00:39]} 23. R6d3 {[%emt 0:02:52]} Bf8 {[%emt 0:01:17]} 24. Bxb6 {[%emt 0:00:19]} axb6 {[%emt 0:00:01]} 25. f3 {[%emt 0:00:22]} Ba3+ {[%emt 0:02:27]} 26. Kb1 {[%emt 0:01:11]} Nf6 {[%emt 0:00:08]} 27. Ng5 {[%emt 0:01:36]} Re7 {[%emt 0:00:15]} 28. Na4 {[%emt 0:00:23]} Ra6 {[%emt 0:02:06]} 29. Rd8+ {[%emt 0:01:37]} Kg7 {[%emt 0:00:01]} 30. R1d3 {[%emt 0:00:34]} b5 {[%emt 0:00:54]} 31. Nc3 {[%emt 0:01:39]} Bb4 {[%emt 0:01:09]} 32. Ne2 {[%emt 0:00:53]} b6 {[%emt 0:01:32]} 33. Rc8 {[%emt 0:02:30]} h6 {[%emt 0:00:12]} 34. Nh3 {[%emt 0:00:15]} Rea7 {[%emt 0:02:08]} 35. Nc1 {[%emt 0:03:30]} Ba3 {[%emt 0:00:12]} 36. Ne2 {[%emt 0:00:46]} Bb4 {[%emt 0:00:35]} 37. Nc1 {[%emt 0:00:17]} c5 {[%emt 0:01:22]} 38. Ng1 {[%emt 0:01:57]} Ba3 {[%emt 0:01:12]} 39. Nce2 {[%emt 0:00:35]} Bb4 {[%emt 0:00:45]} 40. Nc1 {[%emt 0:00:07]} Ba3 {[%emt 0:40:48]} 41. Nge2 {[%emt 0:03:52]} Nd7 {[%emt 0:00:00]} 42. Rd5 {[%emt 0:01:49]} Ra5 {[%emt 0:00:00]} 43. Nd3 {[%emt 0:00:57]} c4 {[%emt 0:00:00]} 44. bxc4 {[%emt 0:08:13]} Bc5 {[%emt 0:00:00]} 45. cxb5 {[%emt 0:15:06]} Rxb5+ {[%emt 0:00:00]} 46. Nb2 {[%emt 0:00:20]} Rba5 {[%emt 0:00:00]} 47. Nc1 {[%emt 0:02:10]} Ra3 {[%emt 0:02:06]} 48. Rd3 {[%emt 0:02:23]} Nf8 {[%emt 0:01:56]} 49. Nc4 {[%emt 0:03:14]} R3a4 {[%emt 0:00:48]} 50. Nxe5 {[%emt 0:00:44]} Bf2 {[%emt 0:00:03]} 51. f4 {[%emt 0:00:32]} Rxe4 {[%emt 0:00:28]} 52. Rc2 {[%emt 0:02:54]} Bc5 {[%emt 0:00:36]} 53. Re2 {[%emt 0:00:34]} Rea4 {[%emt 0:00:37]} 54. Nb3 {[%emt 0:00:28]} Ba3 {[%emt 0:00:24]} 55. Rd4 {[%emt 0:00:42]} b5 {[%emt 0:00:37]} 56. Rd5 {[%emt 0:01:04]} Rb7 {[%emt 0:00:37]} 57. Nc6 {[%emt 0:01:36]} Ra8 {[%emt 0:01:03]} 58. Ncd4 {[%emt 0:00:31]} b4 {[%emt 0:00:03]} 59. Kc2 {[%emt 0:01:51]} Rc8+ {[%emt 0:00:28]} 60. Rc5 {[%emt 0:01:12]} Rxc5+ {[%emt 0:00:25]} 61. Nxc5 {[%emt 0:00:01]} Rc7 {[%emt 0:00:08]} 62. Ndb3 {[%emt 0:00:11]} Kf7 {[%emt 0:00:20]} 63. Kd3 {[%emt 0:00:18]} Nd7 {[%emt 0:00:24]} 64. Kd4 {[%emt 0:01:17]} Nf6 {[%emt 0:01:08]} 65. Kc4 {[%emt 0:00:33]} Nd7 {[%emt 0:00:14]} 66. Kb5 {[%emt 0:00:15]} Nf6 {[%emt 0:00:35]} 67. Kc4 {[%emt 0:01:06]} Nd7 {[%emt 0:00:06]} 68. Kd4 {[%emt 0:00:13]} Nf6 {[%emt 0:00:14]} 69. Ke3 {[%emt 0:01:08]} Nd5+ {[%emt 0:00:16]} 70. Kf3 {[%emt 0:00:19]} Nc3 {[%emt 0:00:28]} 71. Rd2 {[%emt 0:00:09]} Ra7 {[%emt 0:01:03]} 72. Rc2 {[%emt 0:00:18]} Re7 {[%emt 0:00:25]} 73. Nd3 {[%emt 0:01:22]} Nd1 {[%emt 0:00:37]} 74. Ne5+ {[%emt 0:00:14]} Kg7 {[%emt 0:00:15]} 75. Rd2 {[%emt 0:00:21]} Nc3 {[%emt 0:00:26]} 76. Nd4 {[%emt 0:00:42]} Rb7 {[%emt 0:00:16]} 77. g4 {[%emt 0:00:39]} Bc1 {[%emt 0:01:16]} 78. Rc2 {[%emt 0:00:26]} Nxa2 {[%emt 0:00:01]} 79. g5 {[%emt 0:00:50]} b3 {[%emt 0:00:28]} 80. Ne6+ {[%emt 0:00:31]} Kh7 {[%emt 0:00:34]} 81. Nf8+ {[%emt 0:00:32]} Kg7 {[%emt 0:00:52]} 82. Ne6+ {[%emt 0:00:02]} Kh7 {[%emt 0:00:34]} 83. Nf8+ {[%emt 0:00:59]} Kg8 1/2-1/2

[Event "43rd Guernsey Festival 2017"]
[Site "Vale"]
[Date "2017.10.19"]
[Round "5"]
[White "Hoogland, Dirk"]
[Black "Heppell, Ian N"]
[Result "1-0"]
[ECO "A20"]
[WhiteElo "2098"]
[BlackElo "2034"]
[Annotator "NA RC"]
[PlyCount "77"]
[EventDate "2017.??.??"]
[EventType "swiss"]
[EventCountry "GCI"]
[SourceTitle "playchess.com"]
[Source "ChessBase"]
[SourceQuality "1"]
[TimeControl "40/6000+30:2400+30"]

{[%evp 16,77,19,31,36,36,66,59,81,43,45,40,54,0,4,-53,9,0,14,0,45,26,37,20,47,48,50,0,-5,0,5,-21,0,-123,-122,-143,-119,32767,32767,32767,32767,32767,-112,-92,32767,32767,32767,32767,-147,-150,-117,-112,-88,32767,32767,-134,75,51,64,48,230,297,554,653]} 1. c4 {[%emt 0:00:00]} e5 {[%emt 0:00:07]} 2. g3 {[%emt 0:00:00]} Nc6 {[%emt 0:00:15]} 3. Nc3 {[%emt 0:00:00]} f5 {[%emt 0:00:41]} 4. Nf3 {[%emt 0:00:10]} Nf6 {[%emt 0:00:14]} 5. d4 {[%emt 0:00:30]} d6 {[%emt 0:00:07]} 6. Bg5 {[%emt 0:07:07] A27: English Opening: Three Knights Variation} (6. dxe5 Nxe5 7. Bg2 c6 8. b3 g6 9. O-O Bg7 10. Ba3 Nf7 11. Qc2 O-O 12. Rad1 Qe7 13. Rfe1 Ne4 {1-0 (67) Gdanski,J (2542)-Kolosowski,M (2342) Katowice 2010}) 6... e4 {[%emt 0:15:48]} 7. Nh4 {[%emt 0:02:47]} Be7 {[%emt 0:01:34]} 8. Ng2 {[%emt 0:02:02]} O-O {[%emt 0:07:10]} 9. e3 {[%emt 0:06:27]} Qe8 $146 {[%emt 0:09:16]} ({Predecessor:} 9... Ng4 10. Bxe7 Nxe7 11. Be2 Nf6 12. h4 {0-1 (40) Bus,T (2107)-Nabuurs,J (2206) Maastricht 2013}) 10. Nf4 {[%emt 0:01:53]} Bd7 {[%emt 0:06:09]} 11. Be2 {[%emt 0:02:00]} Nd8 {[%emt 0:04:35]} 12. Qb3 {[%emt 0:07:22]} c6 {[%emt 0:03:54]} 13. h4 {[%emt 0:00:24]} Rb8 {[%emt 0:07:51]} 14. a4 {[%emt 0:02:52]} Ne6 {[%emt 0:05:40]} 15. Qd1 {[%emt 0:12:55]} ({White should try} 15. c5 $11 Qf7 16. cxd6 Bxd6 17. Bc4) 15... Nxf4 {[%emt 0:04:27]} (15... Nxg5 $15 16. hxg5 Ng4) 16. Bxf4 {[%emt 0:00:32]} Rd8 {[%emt 0:03:09]} 17. d5 {[%emt 0:03:19]} c5 {[%emt 0:02:35]} 18. Kf1 {[%emt 0:02:04]} Bc8 {[%emt 0:04:03]} 19. Kg2 {[%emt 0:00:40]} Qf7 {[%emt 0:05:52]} 20. Rb1 {[%emt 0:03:34]} Ne8 {[%emt 0:02:51]} 21. Bh5 {[%emt 0:03:37]} g6 {[%emt 0:00:45]} 22. Be2 {[%emt 0:00:06]} Qg7 {[%emt 0:01:38]} 23. g4 {[%emt 0:02:08]} fxg4 $1 {[%emt 0:02:04]} 24. Bg3 {[%emt 0:03:04] [#]} (24. Nxe4 $11 Bf5 25. Bd3) 24... Nf6 $1 {[%emt 0:05:55]} 25. Qc2 {[%emt 0:03:34]} Nh5 {[%emt 0:05:19]} 26. Nxe4 {[%emt 0:04:22]} Bf5 {[%emt 0:00:12]} 27. Bd3 {[%emt 0:00:04]} Nxg3 {[%emt 0:00:16]} 28. Nxg3 {[%emt 0:00:55]} Bxd3 {[%emt 0:03:00]} 29. Qxd3 {[%emt 0:01:18]} Qf7 {[%emt 0:00:40]} 30. Qe2 {[%emt 0:00:31]} h5 {[%emt 0:01:12]} 31. b4 {[%emt 0:00:18]} cxb4 {[%emt 0:01:04]} 32. Rxb4 {[%emt 0:00:08]} b6 {[%emt 0:00:32]} 33. a5 {[%emt 0:00:08]} bxa5 {[%emt 0:00:38]} 34. Rb7 {[%emt 0:00:23]} Rb8 {[%emt 0:02:32]} 35. Rxa7 {[%emt 0:01:09]} (35. Rhb1 $1 $11 {was the only way to keep the balance.} Rxb7 36. Rxb7) 35... Qf3+ $2 {[%emt 0:00:28]} (35... Ra8 $17 {keeps the pressure on.} 36. Rb7 a4) 36. Qxf3 {[%emt 0:00:27]} gxf3+ {[%emt 0:00:06]} 37. Kh3 {[%emt 0:00:19]} Bd8 $2 {[%emt 0:02:59]} (37... Rfe8 $16) 38. Ne4 {[%emt 0:00:37]} Rb2 $2 {[%emt 0:00:48]} (38... Rf7 39. Ra6 Be7) 39. Rg1 $18 {[%emt 0:00:52]} 1-0